bitfinex/quotes_ETHUSD_20250526
["timestamp","ask_amount","ask_price","bid_price","bid_amount"]
[1748301065455,8.02,2559.2,2559.0,8.0]
[1748301066268,8.8142,2559.2,2558.9,8.46608873]
[1748301066754,8.8142,2559.2,2558.9,0.46608873]
[1748301067162,8.8142,2559.2,2558.8,2.42887703]
[1748301068449,8.8142,2559.2,2558.8,1.9627883]
[1748301072289,8.8142,2559.2,2558.7,11.15758311]
[1748301073491,0.7942,2559.2,2558.7,11.15758311]
[1748301073695,3.906,2559.1,2558.7,11.15758311]
[1748301074559,0.8017,2558.9,2558.7,0.46608873]
[1748301074892,4.75640533,2558.8,2558.6,0.46608873]
[1748301075097,3.906,2558.7,2558.6,0.46608873]
[1748301076562,3.906,2558.7,2558.5,1.9627883]
[1748301076764,0.04870533,2558.6,2558.5,1.9627883]
[1748301077011,0.8017,2558.8,2558.5,4.65428268]
[1748301077172,4.114,2558.9,2558.7,2.69149438]
[1748301077365,8.02,2558.8,2558.7,2.69149438]
[1748301077691,3.906,2558.8,2558.7,2.69149438]
[1748301077997,3.906,2558.8,2558.5,4.65428268]
[1748301078180,3.906,2558.8,2558.5,2.55022544]
[1748301078361,4.114,2558.9,2558.5,2.55022544]
[1748301078561,3.906,2558.8,2558.5,2.55022544]
[1748301079169,4.114,2558.9,2558.5,2.55022544]
[1748301079170,0.7572,2559.1,2558.6,2.69149438]
[1748301079401,4.114,2559.3,2559.0,2.69149438]
[1748301079775,4.7392,2559.2,2558.9,8.0]
[1748301079980,4.7392,2559.2,2558.7,0.46608873]
[1748301080191,0.04870533,2559.1,2558.7,1.18647394]
[1748301080364,4.7392,2559.2,2558.7,1.18647394]
[1748301080699,4.7392,2559.2,2558.7,0.72038521]
[1748301083666,4.7392,2559.2,2558.6,11.15758311]
[1748301084077,0.04870533,2559.1,2558.6,3.15758311]
[1748301084670,4.7392,2559.2,2558.6,3.15758311]
[1748301085493,0.7737,2559.1,2558.6,0.46608873]
[1748301085694,0.7737,2559.1,2558.5,1.9627883]
[1748301087595,0.7737,2559.1,2558.4,2.69149438]
[1748301087797,0.82240533,2559.1,2558.4,2.69149438]
[1748301089110,0.7737,2559.1,2558.4,2.69149438]
[1748301089280,0.7737,2559.1,2558.6,2.69149438]
[1748301089676,0.7737,2559.1,2558.8,2.69149438]
[1748301089876,4.114,2559.0,2558.8,2.69149438]
[1748301090095,8.02,2559.0,2558.8,2.96064382]
[1748301096020,8.02,2559.0,2558.6,0.46608873]
[1748301096021,0.8046,2558.9,2558.6,0.46608873]
[1748301096216,0.8046,2558.7,2558.6,0.46608873]
[1748301096432,4.7106,2558.7,2558.6,0.46608873]
[1748301097423,4.7106,2558.7,2558.4,1.9627883]
[1748301099822,0.04870533,2558.6,2558.4,1.9627883]
[1748301099998,0.7725,2558.5,2558.4,1.9627883]
[1748301101524,0.7725,2558.5,2557.9,2.69149438]
[1748301103209,0.7725,2558.5,2558.1,2.69149438]
[1748301103410,0.7725,2558.5,2558.1,3.47449438]
[1748301108528,0.8098,2558.7,2558.1,3.47449438]
[1748301108734,3.907,2558.6,2558.1,3.47449438]
[1748301109033,3.907,2558.6,2558.1,3.90797307]
[1748301111199,3.907,2558.6,2558.1,3.12497307]
[1748301112538,3.907,2558.6,2558.1,2.69149438]
[1748301118107,0.8245,2558.5,2558.1,2.69149438]
[1748301118306,0.87320533,2558.5,2558.0,0.46608873]
[1748301118617,0.8245,2558.5,2557.9,0.46608873]
[1748301119037,0.87320533,2558.5,2557.9,0.46608873]
[1748301119843,0.87320533,2558.5,2557.8,10.69149438]
[1748301120244,0.87320533,2558.5,2557.8,8.0]
[1748301120445,0.55,2558.4,2557.7,2.42887703]
[1748301120743,0.55,2558.4,2557.7,1.9627883]
[1748301120744,0.86200533,2558.3,2557.7,1.9627883]
[1748301121457,0.8133,2558.3,2557.9,2.69149438]
[1748301121751,0.8133,2558.3,2557.7,4.65428268]
[1748301123266,0.8133,2558.3,2557.7,2.69149438]
[1748301124170,4.114,2558.2,2557.7,2.69149438]
[1748301124374,3.907,2558.1,2557.7,2.69149438]
[1748301126367,4.114,2558.2,2557.7,2.69149438]
[1748301126570,3.907,2558.1,2557.7,2.69149438]
[1748301128473,3.907,2558.1,2557.9,2.69149438]
[1748301128769,3.907,2558.1,2557.7,2.69149438]
[1748301129373,3.907,2558.1,2557.7,3.15758311]
[1748301129876,3.907,2558.0,2557.7,3.15758311]
[1748301130173,3.907,2558.1,2557.8,8.0]
[1748301131365,0.7672,2558.0,2557.8,8.0]
[1748301135457,3.907,2558.1,2557.8,8.0]
[1748301138079,4.8858,2558.2,2557.9,2.69149438]
[1748301138378,3.907,2558.1,2558.0,8.0]
[1748301139602,0.833,2558.4,2558.0,8.0]
[1748301139743,8.019,2558.3,2558.0,8.0]
[1748301140202,0.833,2558.4,2558.0,8.0]
[1748301140542,8.019,2558.3,2558.0,8.0]
[1748301140748,8.019,2558.3,2557.9,0.46608873]
[1748301141083,0.8075,2558.2,2557.9,0.46608873]
[1748301142374,0.8075,2558.2,2557.8,8.0]
[1748301143081,0.04870533,2558.1,2557.7,0.46608873]
[1748301143296,3.907,2558.0,2557.7,0.46608873]
[1748301143452,3.907,2558.0,2557.6,0.46608873]
[1748301143855,3.907,2558.0,2557.6,10.42887703]
[1748301144050,0.80000533,2557.9,2557.6,2.42887703]
[1748301144368,0.7513,2557.9,2557.6,2.42887703]
[1748301144571,0.04870533,2557.8,2557.6,2.42887703]
[1748301144749,3.907,2557.7,2557.6,1.9627883]
[1748301146088,4.6613,2557.7,2557.6,1.9627883]
[1748301146387,5.13230053,2557.7,2557.6,1.9627883]
[1748301148657,5.13230053,2557.7,2557.2,1.9627883]
[1748301148860,4.112,2557.6,2557.2,1.9627883]
[1748301149694,0.7578,2557.5,2557.2,1.9627883]
[1748301151781,4.112,2557.6,2557.2,1.9627883]
[1748301151961,4.112,2557.6,2557.2,2.43821657]
[1748301153468,4.112,2557.6,2557.2,0.47542827]
[1748301153897,0.8235,2557.7,2557.3,2.69149438]
[1748301154072,0.8067,2558.0,2557.5,2.69149438]
[1748301154273,3.908,2557.9,2557.8,2.69149438]
[1748301154597,3.908,2557.9,2557.6,3.78704382]
[1748301156080,3.908,2557.9,2557.6,2.96064382]
[1748301158165,3.908,2557.9,2557.4,1.24958873]
[1748301158365,0.8227,2557.8,2557.4,0.46608873]
[1748301159998,0.8227,2557.8,2557.2,0.46608873]
[1748301160318,0.7958,2557.6,2557.2,0.46608873]
[1748301160617,3.95670533,2557.5,2557.2,0.46608873]
[1748301160917,3.95670533,2557.5,2557.2,1.9627883]
[1748301160918,4.112,2557.4,2557.2,1.9627883]
[1748301164228,4.77392728,2557.4,2557.2,1.9627883]
[1748301164591,4.77392728,2557.4,2557.1,0.1]
[1748301167622,4.112,2557.4,2557.1,0.1]
[1748301167921,3.908,2557.3,2557.1,0.1]
[1748301171919,3.908,2557.2,2557.1,0.1]
[1748301175019,4.6661,2557.2,2557.1,0.1]
[1748301178229,3.908,2557.2,2557.1,0.1]
[1748301181239,4.78855,2557.2,2557.1,0.1]
[1748301184243,5.58645,2557.2,2557.1,0.1]
[1748301184451,5.63515533,2557.2,2557.1,0.1]
[1748301193262,1.72715533,2557.2,2557.1,0.1]
[1748301193437,4.7069,2557.2,2557.1,0.1]
[1748301193827,8.8189,2557.2,2557.1,0.1]
[1748301194419,0.7629,2557.5,2557.1,0.1]
[1748301194618,4.112,2557.4,2557.1,0.1]
[1748301194824,3.909,2557.3,2557.1,0.1]
[1748301197985,3.909,2557.2,2557.1,0.1]
[1748301199983,4.112,2557.4,2557.1,0.1]
[1748301200183,3.909,2557.2,2557.1,0.1]
[1748301200758,3.909,2557.2,2557.1,0.9155]
[1748301205557,3.909,2557.2,2557.1,0.1]
[1748301206687,4.112,2557.4,2557.1,0.1]
[1748301206892,3.909,2557.2,2557.1,0.1]
[1748301208894,0.8119,2557.7,2557.1,0.1]
[1748301209056,4.109,2557.6,2557.1,0.1]
[1748301209256,3.909,2557.5,2557.1,0.1]
[1748301209960,4.109,2557.6,2557.1,0.1]
[1748301210189,3.909,2557.5,2557.2,0.769]
[1748301210386,4.109,2557.6,2557.2,0.769]
[1748301210601,0.767,2557.9,2557.3,2.69149438]
[1748301210787,8.018,2557.8,2557.6,0.769]
[1748301211086,3.909,2557.7,2557.6,0.769]
[1748301211489,4.109,2557.8,2557.6,0.769]
[1748301211793,3.909,2557.7,2557.6,0.769]
[1748301211966,3.909,2557.7,2557.6,1.11504944]
[1748301216111,0.767,2558.2,2557.6,1.11504944]
[1748301216399,4.108,2557.9,2557.6,0.769]
[1748301216909,3.908,2557.8,2557.6,0.769]
[1748301219995,8.444,2558.3,2557.7,2.69149438]
[1748301220196,8.444,2558.3,2557.6,0.769]
[1748301220197,4.108,2558.0,2557.6,0.769]
[1748301220658,3.908,2557.9,2557.6,0.769]
[1748301222799,4.108,2558.0,2557.7,8.0]
[1748301222964,3.908,2557.9,2557.7,8.0]
[1748301223296,8.444,2558.3,2557.8,2.69149438]
[1748301223466,8.016,2558.2,2557.8,2.69149438]
[1748301223792,4.108,2558.2,2557.9,0.7935]
[1748301224100,12.352,2558.3,2558.0,2.69149438]
[1748301224467,0.807,2559.8,2558.3,0.7935]
[1748301224700,3.06679455,2561.5,2559.5,2.69149438]
[1748301224701,0.807,2560.0,2559.5,2.69149438]
[1748301224873,0.807,2560.3,2559.5,3.48499438]
[1748301225078,0.807,2560.3,2559.6,8.0]
[1748301225079,4.715,2560.3,2559.6,8.0]
[1748301225274,3.908,2560.3,2559.7,0.7935]
[1748301225473,3.908,2560.3,2559.8,2.73055671]
[1748301225796,3.908,2560.3,2559.8,2.69149438]
[1748301226002,3.908,2560.3,2559.8,3.07730455]
[1748301226999,0.807,2560.4,2559.8,3.07730455]
[1748301227200,4.145,2560.3,2559.8,3.07730455]
[1748301227499,8.052,2560.3,2559.8,3.07730455]
[1748301227914,8.052,2560.3,2559.8,0.38581017]
[1748301229281,8.052,2560.3,2559.5,0.26914944]
[1748301229282,4.006,2559.9,2559.5,0.26914944]
[1748301229485,4.006,2559.9,2559.3,8.0]
[1748301229793,4.05470533,2559.9,2559.3,8.39948578]
[1748301230404,3.906,2559.8,2559.4,2.69149438]
[1748301230798,3.906,2559.8,2559.2,3.47149438]
[1748301230998,3.906,2559.8,2559.3,0.34714944]
[1748301231920,3.906,2559.8,2559.4,2.69149438]
[1748301232621,3.906,2559.8,2558.9,0.754]
[1748301232622,0.04870533,2559.7,2558.9,0.754]
[1748301232800,0.7897,2559.6,2559.0,8.0]
[1748301233488,0.7897,2559.6,2559.1,2.69149438]
[1748301235328,0.7897,2559.6,2559.1,3.08389849]
[1748301235623,3.906,2559.5,2559.3,2.69149438]
[1748301239307,3.906,2559.5,2558.5,0.8267]
[1748301239520,0.7588,2559.3,2558.8,2.69149438]
[1748301239716,4.95050533,2559.3,2558.8,2.69149438]
[1748301239907,4.9018,2559.3,2558.8,2.69149438]
[1748301240343,0.04870533,2559.2,2558.8,2.69149438]
[1748301240512,4.9018,2559.3,2558.8,2.69149438]
[1748301240712,0.04870533,2559.2,2558.8,2.69149438]
[1748301240912,5.829537,2559.3,2558.6,2.69149438]
[1748301242235,5.11944233,2559.3,2558.6,2.69149438]
[1748301242543,0.7588,2559.2,2558.6,2.69149438]
[1748301243249,0.7588,2559.2,2558.5,2.69149438]
[1748301243422,0.63652956,2559.1,2558.3,2.69149438]
[1748301243747,4.6996,2559.0,2558.3,2.69149438]
[1748301244855,4.6996,2559.0,2558.9,2.69149438]
[1748301245212,4.6996,2559.0,2558.7,2.69149438]
[1748301245937,4.143,2559.4,2558.9,3.48669438]
[1748301246141,4.143,2559.4,2559.3,2.69149438]
[1748301246456,0.758,2559.7,2559.3,2.69149438]
[1748301246457,3.906,2559.5,2559.3,2.69149438]
[1748301251256,3.906,2559.5,2558.9,3.48669438]
[1748301251555,3.906,2559.5,2559.0,8.0]
[1748301251721,3.906,2559.5,2559.1,2.69149438]
[1748301252359,4.7867,2559.5,2558.9,2.69149438]
[1748301252657,0.8187,2559.4,2558.9,2.69149438]
[1748301252957,0.8187,2559.4,2559.1,2.69149438]
[1748301254160,0.8187,2559.4,2559.2,0.372736]
[1748301258488,0.8187,2559.4,2559.3,0.372736]
[1748301261052,3.906,2559.5,2559.3,0.372736]
[1748301262287,3.906,2559.5,2559.4,0.372736]
[1748301263095,3.906,2559.5,2559.2,0.372736]
[1748301264288,3.906,2559.5,2559.3,0.372736]
[1748301265400,3.906,2559.5,2559.4,0.372736]
[1748301266488,3.906,2559.5,2559.2,0.372736]
[1748301267905,3.906,2559.5,2559.3,0.372736]
[1748301268703,3.906,2559.5,2559.4,0.372736]
[1748301268905,4.55432924,2559.5,2559.4,0.372736]
[1748301269930,4.55432924,2559.5,2559.1,0.372736]
[1748301270082,3.906,2559.5,2559.1,0.372736]
[1748301271030,3.906,2559.5,2559.2,0.372736]
[1748301272229,3.906,2559.5,2559.3,0.372736]
[1748301273637,3.906,2559.5,2559.4,0.372736]
[1748301287737,8.036,2559.5,2559.4,0.372736]
[1748301287939,8.91642,2559.5,2559.4,0.372736]
[1748301289556,8.91642,2559.5,2558.9,0.46608873]
[1748301291043,0.7695,2559.2,2559.0,0.37471613]
[1748301291239,3.95370533,2559.1,2559.0,0.37471613]
[1748301291427,4.43232053,2559.1,2559.0,0.37471613]
[1748301292133,4.43232053,2559.1,2558.9,0.46608873]
[1748301292457,3.905,2559.1,2558.8,1.95172277]
[1748301292954,3.905,2559.1,2558.6,1.95172277]
[1748301293569,3.905,2559.1,2558.7,0.37436831]
[1748301294381,0.7695,2559.2,2558.7,3.06586269]
[1748301294514,8.011,2559.0,2558.9,2.69149438]
[1748301296053,8.011,2559.0,2558.9,3.06563728]
[1748301296263,8.011,2559.0,2558.9,0.3741429]
[1748301297553,0.7577,2559.4,2558.9,0.3741429]
[1748301297554,0.55,2559.3,2558.9,0.3741429]
[1748301297730,4.105,2559.0,2558.9,0.3741429]
[1748301298134,4.105,2559.0,2558.7,2.69149438]
[1748301298857,0.55,2559.3,2558.8,0.37405201]
[1748301299058,4.105,2559.0,2558.8,0.37405201]
[1748301299920,4.105,2559.0,2558.5,3.97298311]
[1748301300745,0.55,2559.3,2558.5,3.97298311]
[1748301301054,8.011,2559.2,2558.6,0.37403494]
[1748301301264,8.94287,2559.2,2558.6,0.37403494]
[1748301302255,0.93187,2559.2,2558.6,0.37403494]
[1748301302456,8.011,2559.1,2558.6,0.37403494]
[1748301302643,3.906,2559.0,2558.7,0.37403494]
[1748301304325,3.906,2559.0,2558.8,0.37403494]
[1748301305441,3.906,2559.0,2558.9,0.37403494]
[1748301305964,4.7024,2559.0,2558.9,0.37403494]
[1748301307140,4.7024,2559.0,2558.5,3.50689438]
[1748301308060,4.7024,2559.0,2558.6,0.37404565]
[1748301309077,3.906,2559.0,2558.6,0.37404565]
[1748301309283,3.906,2559.0,2558.5,3.50689438]
[1748301309284,3.906,2559.0,2558.7,0.37404565]
[1748301309461,0.817,2558.9,2558.7,0.37404565]
[1748301309782,0.04870533,2558.8,2558.7,0.37404565]
[1748301310083,1.41570533,2558.8,2558.7,0.37404565]
[1748301310468,1.41570533,2558.8,2558.5,0.37404565]
[1748301311176,0.817,2558.7,2558.5,0.37404565]
[1748301311357,3.906,2558.6,2558.5,0.37404565]
[1748301311544,4.43817053,2558.6,2558.5,0.37404565]
[1748301311745,4.43817053,2558.6,2558.3,0.37404565]
[1748301311949,4.48687586,2558.6,2558.3,0.37404565]
[1748301312275,1.3212,2558.5,2558.3,0.37404565]
[1748301312478,4.106,2558.4,2558.2,1.95172277]
[1748301314359,4.106,2558.4,2557.9,0.7709]
[1748301314576,4.106,2558.4,2558.0,0.37377707]
[1748301315365,4.106,2558.4,2558.0,3.06527145]
[1748301316186,4.106,2558.4,2558.0,0.37377707]
[1748301316396,4.106,2558.4,2558.1,0.37377707]
[1748301318101,4.106,2558.4,2557.9,3.46239438]
[1748301318396,4.106,2558.4,2558.1,2.69149438]
[1748301318598,3.907,2558.3,2558.1,2.69149438]
[1748301318975,3.907,2558.3,2557.9,3.85524269]
[1748301319679,3.907,2558.3,2557.9,3.46239438]
[1748301320200,3.907,2558.3,2558.0,0.37371828]
[1748301321601,3.907,2558.3,2558.1,0.37371828]
[1748301322005,4.106,2558.4,2558.1,3.06521266]
[1748301322214,4.106,2558.4,2558.3,2.69149438]
[1748301322512,4.106,2558.4,2558.3,3.89182421]
[1748301322801,4.106,2558.4,2558.3,4.26554249]
[1748301324708,4.106,2558.4,2558.3,0.37371828]
[1748301333453,4.8772,2558.4,2558.3,0.37371828]
[1748301333654,4.8772,2558.4,2557.9,2.69149438]
[1748301334757,4.8772,2558.4,2558.0,0.37400546]
[1748301335953,4.87618894,2558.4,2558.0,0.37400546]
[1748301336158,4.87618894,2558.4,2558.1,0.37400546]
[1748301337262,4.87618894,2558.4,2558.0,0.37400546]
[1748301338563,4.87618894,2558.4,2558.1,0.37400546]
[1748301339580,4.87618894,2558.4,2558.2,0.37400546]
[1748301340259,3.907,2558.3,2558.2,0.37400546]
[1748301340463,0.8077,2558.6,2558.2,0.37400546]
[1748301340664,4.106,2558.4,2558.2,0.37400546]
[1748301341369,4.106,2558.4,2558.3,2.69149438]
[1748301341571,8.013,2558.4,2558.3,2.69149438]
[1748301341737,3.907,2558.4,2558.3,2.69149438]
[1748301342085,3.907,2558.4,2558.3,0.37400546]
[1748301344336,4.106,2558.5,2558.3,0.37400546]
[1748301344539,3.907,2558.4,2558.3,0.37400546]
[1748301345847,5.66457533,2558.4,2558.3,0.37400546]
[1748301346374,6.21457533,2558.4,2558.3,0.37400546]
[1748301347540,6.16587,2558.4,2558.3,0.37400546]
[1748301347741,0.55,2558.3,2557.9,0.37400546]
[1748301348245,1.577187,2558.3,2557.9,0.37400546]
[1748301348889,1.577187,2558.3,2557.7,0.37400546]
[1748301349086,0.8268,2558.4,2558.1,2.69149438]
[1748301349398,3.907,2558.3,2558.1,2.69149438]
[1748301349978,3.907,2558.3,2558.2,0.37400546]
[1748301356686,4.6593,2558.3,2558.2,0.37400546]
[1748301358404,3.907,2558.3,2558.2,0.37400546]
[1748301366598,5.60294,2558.3,2558.2,0.37400546]
[1748301366803,6.20164533,2558.3,2558.2,0.37400546]
[1748301367165,6.20164533,2558.3,2558.0,0.37400546]
[1748301368229,0.8185,2558.1,2557.7,1.95172277]
[1748301368383,1.48736986,2558.1,2557.7,1.95172277]
[1748301368926,0.55,2558.0,2557.7,1.95172277]
[1748301369082,0.55,2557.8,2557.7,1.95172277]
[1748301369285,0.55,2557.8,2557.4,2.4178115]
[1748301369496,4.15270533,2557.7,2557.4,2.4178115]
[1748301369827,5.09232586,2557.7,2557.4,2.4178115]
[1748301370340,5.04362053,2557.7,2557.4,2.4178115]
[1748301370939,5.04362053,2557.7,2557.4,1.95172277]
[1748301373227,4.104,2557.7,2557.4,1.95172277]
[1748301373715,4.104,2557.7,2557.2,2.69149438]
[1748301375032,3.908,2557.6,2557.2,2.69149438]
[1748301377465,3.908,2557.6,2557.1,0.1]
[1748301377466,0.7909,2557.5,2557.1,0.1]
[1748301377653,0.04870533,2557.4,2557.1,0.1]
[1748301377848,0.52346586,2557.4,2557.1,0.1]
[1748301378441,0.7909,2557.3,2557.1,0.1]
[1748301379163,0.04870533,2557.2,2557.1,0.1]
[1748301386376,3.95770533,2557.2,2557.1,0.1]
[1748301389478,4.50770533,2557.2,2557.1,0.1]
[1748301389799,5.08504192,2557.2,2557.1,0.1]
[1748301390511,13.53463326,2557.2,2557.1,0.1]
[1748301390715,13.48592793,2557.2,2557.1,0.1]
[1748301394001,9.57692793,2557.2,2557.1,0.1]
[1748301394207,13.48592793,2557.2,2557.1,0.1]
[1748301397296,26.52442231,2557.2,2557.1,0.1]
[1748301398604,30.63842231,2557.2,2557.1,0.1]
[1748301402172,27.94792793,2557.2,2557.1,0.1]
[1748301402611,17.57692793,2557.2,2557.1,0.1]
[1748301402909,20.93692793,2557.2,2557.1,0.1]
[1748301403206,21.48692793,2557.2,2557.1,0.1]
[1748301404605,25.59192793,2557.2,2557.1,0.1]
[1748301406110,21.68192793,2557.2,2557.1,0.1]
[1748301406417,4.105,2557.2,2557.1,0.1]
[1748301406617,8.015,2557.2,2557.1,0.8736]
[1748301408090,8.015,2557.2,2557.1,1.24785858]
[1748301411119,4.105,2557.2,2557.1,1.24785858]
[1748301411294,8.015,2557.2,2557.1,1.24785858]
[1748301412938,4.105,2557.2,2557.1,1.24785858]
[1748301413083,8.014,2557.2,2557.1,1.24785858]
[1748301415399,8.014,2557.2,2557.1,0.47425858]
[1748301416289,8.014,2557.2,2557.1,0.1]
[1748301416620,4.105,2557.2,2557.1,0.1]
[1748301416823,8.014,2557.2,2557.1,0.888]
[1748301417134,8.014,2557.2,2557.1,1.24594944]
[1748301418117,4.105,2557.2,2557.1,1.24594944]
[1748301418286,8.014,2557.2,2557.1,1.61969531]
[1748301419920,3.909,2557.2,2557.1,1.61969531]
[1748301420123,4.102,2557.4,2557.2,0.788]
[1748301420323,3.909,2557.3,2557.2,3.47949438]
[1748301420526,3.909,2557.3,2557.2,3.91061335]
[1748301420834,4.102,2557.4,2557.3,8.788]
[1748301421139,12.545,2558.0,2557.4,0.7656]
[1748301421298,4.102,2558.7,2558.0,0.7656]
[1748301421498,4.3192,2558.6,2558.2,2.69149438]
[1748301421817,4.3192,2558.6,2558.0,0.7656]
[1748301421818,4.3192,2558.6,2558.0,3.45709438]
[1748301422000,3.909,2558.6,2558.0,3.45709438]
[1748301422184,0.55,2558.5,2558.1,0.37374587]
[1748301422711,3.909,2558.4,2558.1,0.37374587]
[1748301423305,3.909,2558.4,2558.0,0.7656]
[1748301423646,3.909,2558.3,2558.0,0.76458893]
[1748301423855,3.909,2558.3,2558.0,1.11019726]
[1748301424352,3.909,2558.3,2558.0,0.76458893]
[1748301425269,3.909,2558.3,2557.5,4.64321715]
[1748301426633,3.909,2558.3,2557.6,0.8146]
[1748301433983,0.7639,2558.4,2557.7,2.69149438]
[1748301434272,8.49419134,2558.6,2558.0,0.7598]
[1748301434478,8.49419134,2558.6,2557.9,2.69149438]
[1748301434479,8.009,2558.5,2557.9,2.69149438]
[1748301435050,3.908,2558.4,2557.9,2.69149438]
[1748301436677,3.908,2558.4,2557.8,0.7598]
[1748301437678,0.8073,2558.3,2557.8,0.7598]
[1748301437841,0.8073,2558.3,2557.6,3.45059438]
[1748301438179,1.68893,2558.3,2557.6,3.45059438]
[1748301442474,1.68893,2558.3,2557.7,0.37323428]
[1748301443563,1.68893,2558.3,2557.6,3.45059438]
[1748301446200,1.68893,2558.3,2557.7,0.37362966]
[1748301446993,1.68893,2558.3,2557.8,0.37362966]
[1748301447191,0.559693,2558.2,2557.8,0.37362966]
[1748301448082,4.659693,2558.2,2557.8,0.37362966]
[1748301448285,4.659693,2558.2,2557.7,0.37362966]
[1748301448494,4.659693,2558.2,2557.8,2.69149438]
[1748301449406,4.659693,2558.2,2557.9,0.37362966]
[1748301450876,4.659693,2558.2,2558.0,0.37362966]
[1748301451609,4.659693,2558.2,2557.8,2.69149438]
[1748301452508,4.1,2558.2,2557.8,2.69149438]
[1748301452708,4.1,2558.2,2558.0,2.69149438]
[1748301452915,8.008,2558.2,2558.0,2.69149438]
[1748301453216,3.908,2558.3,2558.0,3.50279438]
[1748301453975,4.1,2558.5,2558.2,2.69149438]
[1748301454278,8.444,2559.4,2558.0,3.50279438]
[1748301454279,3.908,2558.7,2558.4,2.69149438]
[1748301454617,4.8676,2558.9,2558.4,2.69149438]
[1748301454834,3.908,2558.8,2558.4,2.69149438]
[1748301455375,3.908,2558.8,2558.5,0.37456784]
[1748301456625,3.908,2558.8,2558.6,0.37456784]
[1748301457533,3.908,2558.8,2558.4,2.69149438]
[1748301457673,3.908,2558.8,2558.4,3.08838269]
[1748301458315,3.907,2558.7,2558.5,0.37393908]
[1748301459481,3.907,2558.7,2558.6,0.37393908]
[1748301461994,3.907,2558.7,2558.1,8.8282]
[1748301462402,3.907,2558.7,2558.2,2.69149438]
[1748301463003,3.907,2558.7,2558.3,0.3736628]
[1748301463929,0.7794,2558.6,2558.3,0.3736628]
[1748301464135,0.7794,2558.6,2557.9,2.69149438]
[1748301465023,0.7794,2558.6,2558.0,0.37369157]
[1748301466249,0.7794,2558.6,2558.1,0.37369157]
[1748301467097,0.82810533,2558.6,2558.1,0.37369157]
[1748301467448,0.82810533,2558.6,2558.2,0.37369157]
[1748301467449,0.7706,2558.4,2558.2,0.37369157]
[1748301468036,0.81930533,2558.4,2558.2,0.37369157]
[1748301468450,0.7706,2558.4,2558.2,0.37369157]
[1748301468598,0.7706,2558.4,2557.8,8.0]
[1748301469761,0.7706,2558.4,2557.9,0.37376158]
[1748301469954,0.7706,2558.4,2557.9,3.06525596]
[1748301470311,3.907,2558.3,2557.9,3.06525596]
[1748301470511,4.099,2558.2,2557.9,3.06525596]
[1748301471157,4.099,2558.2,2558.0,0.37376158]
[1748301474651,4.099,2558.2,2558.1,0.37376158]
[1748301475538,4.05976099,2558.2,2558.0,0.37376158]
[1748301476354,4.05976099,2558.2,2558.1,2.69149438]
[1748301476554,4.05976099,2558.2,2558.1,11.48189438]
[1748301476719,4.05976099,2558.2,2558.1,11.85565596]
[1748301478154,4.05976099,2558.2,2558.1,12.32174469]
[1748301479255,3.907,2558.3,2558.1,3.85565596]
[1748301479451,4.098,2558.8,2558.2,8.44617886]
[1748301479751,4.098,2558.8,2558.7,8.0]
[1748301479957,8.005,2558.8,2558.7,8.0]
[1748301480653,3.907,2558.9,2558.8,0.7515]
[1748301480869,3.907,2558.9,2558.8,3.44299438]
[1748301481047,3.907,2558.9,2558.8,3.78729382]
[1748301481358,3.907,2559.1,2558.8,4.1610554]
[1748301481557,3.907,2559.1,2559.0,2.69149438]
[1748301482216,3.907,2559.1,2559.0,3.06525596]
[1748301484466,3.906,2559.1,2559.0,3.06525596]
[1748301484763,3.906,2559.1,2559.0,3.52810684]
[1748301485146,8.003,2559.2,2559.0,3.52810684]
[1748301486232,8.003,2559.2,2559.1,0.37376158]
[1748301486715,4.097,2559.2,2559.1,0.37376158]
[1748301486954,8.003,2559.2,2559.1,0.37376158]
[1748301487655,8.7602,2559.2,2559.1,0.37376158]
[1748301488216,8.7602,2559.2,2558.6,0.46745335]
[1748301488217,9.64889342,2559.2,2558.6,0.46745335]
[1748301488412,0.55,2559.1,2558.6,0.46745335]
[1748301488654,0.7572,2559.0,2558.6,0.46745335]
[1748301488857,3.906,2558.9,2558.6,0.46745335]
[1748301489158,4.31860456,2558.9,2558.6,0.46745335]
[1748301489369,4.31860456,2558.9,2558.4,1.95172277]
[1748301489532,3.906,2558.9,2558.4,1.95172277]
[1748301489733,0.80590533,2558.8,2558.3,1.95172277]
[1748301490061,0.7572,2558.8,2558.3,1.95172277]
[1748301491760,3.906,2558.7,2558.3,1.95172277]
[1748301492431,8.003,2558.6,2558.3,1.95172277]
[1748301493859,8.003,2558.6,2558.2,2.69149438]
[1748301494017,8.003,2558.6,2558.2,2.96064382]
[1748301495083,3.906,2558.5,2558.3,0.37311857]
[1748301496062,3.906,2558.5,2558.2,2.96064382]
[1748301497669,3.906,2558.5,2558.4,2.69149438]
[1748301498051,0.7572,2558.8,2558.4,2.69149438]
[1748301498251,8.003,2558.7,2558.4,2.69149438]
[1748301498468,8.003,2558.7,2558.4,3.06500876]
[1748301498871,8.003,2558.7,2558.2,2.69149438]
[1748301499582,8.003,2558.7,2558.3,0.37325877]
[1748301500374,8.003,2558.7,2558.2,2.69149438]
[1748301503091,8.003,2558.7,2558.3,0.37339069]
[1748301503911,8.003,2558.7,2558.2,2.69149438]
[1748301504106,8.003,2558.7,2558.2,3.03809382]
[1748301505989,3.907,2558.6,2558.2,3.03809382]
[1748301506358,3.907,2558.6,2558.3,0.37351241]
[1748301506776,4.097,2558.7,2558.4,2.69149438]
[1748301506998,3.907,2558.6,2558.4,3.44369438]
[1748301507299,3.907,2558.6,2558.5,0.38172068]